bitfinex/quotes_BTCUSD_20251016
["timestamp","ask_amount","ask_price","bid_price","bid_amount"]
[1760648279504,0.18532482,107920.0,107910.0,0.20385353]
[1760648279931,0.18532482,107920.0,107900.0,0.18535681]
[1760648280136,0.00742322,107910.0,107900.0,0.18535681]
[1760648280360,0.03828149,107920.0,107900.0,0.22153909]
[1760648280588,0.23102757,107920.0,107910.0,0.18533963]
[1760648280798,0.18532286,107920.0,107910.0,0.18533963]
[1760648281002,0.19274608,107920.0,107910.0,0.18533963]
[1760648281393,0.00742322,107920.0,107910.0,0.2260275]
[1760648281611,0.04233398,107930.0,107920.0,0.18532246]
[1760648282439,0.04233398,107930.0,107920.0,0.22150474]
[1760648282774,0.0374972,107930.0,107920.0,0.22200752]
[1760648283398,0.0002,107930.0,107920.0,0.22200752]
[1760648283627,0.0002,107930.0,107920.0,0.34017618]
[1760648284460,0.0002,107930.0,107920.0,0.34021618]
[1760648292197,0.0002,107930.0,107920.0,0.15489372]
[1760648292412,0.0002,107930.0,107920.0,0.0652036]
[1760648292413,0.18550529,107930.0,107920.0,0.0652036]
[1760648292644,0.18550529,107930.0,107920.0,0.00054278]
[1760648292866,5.34447329,107930.0,107920.0,0.00054278]
[1760648293162,5.39878765,107930.0,107920.0,0.00054278]
[1760648293376,5.4484616,107930.0,107920.0,0.00054278]
[1760648293587,5.53814368,107930.0,107920.0,1e-08]
[1760648293799,5.5296987,107930.0,107920.0,1e-08]
[1760648294009,0.62825035,107930.0,107920.0,1e-08]
[1760648294877,0.57852772,107930.0,107920.0,1e-08]
[1760648295303,5.41407181,107930.0,107920.0,1e-08]
[1760648295515,5.45669899,107930.0,107920.0,1e-08]
[1760648295739,5.54638107,107930.0,107920.0,1e-08]
[1760648295946,5.34429046,107920.0,107910.0,4e-05]
[1760648296150,5.41393079,107920.0,107910.0,0.00054259]
[1760648296941,5.44711334,107920.0,107910.0,0.00054259]
[1760648297325,5.41393079,107920.0,107910.0,0.00054259]
[1760648297527,5.53149097,107920.0,107910.0,0.00054259]
[1760648298522,5.53149097,107920.0,107910.0,0.00058259]
[1760648299348,5.56468231,107920.0,107910.0,0.00058259]
[1760648299517,5.56310724,107920.0,107910.0,0.00058259]
[1760648300763,0.65445716,107920.0,107910.0,0.00058259]
[1760648302798,0.57681462,107920.0,107910.0,0.00058259]
[1760648303035,0.20519835,107920.0,107910.0,0.20445618]
[1760648303290,0.18532246,107920.0,107910.0,0.18592222]
[1760648303519,0.54542889,107930.0,107910.0,0.18592222]
[1760648303935,0.18532246,107920.0,107910.0,0.18592222]
[1760648305015,0.18532246,107920.0,107910.0,0.00058259]
[1760648305642,0.18532246,107920.0,107910.0,0.18592222]
[1760648306103,0.54542186,107930.0,107920.0,0.18532246]
[1760648306528,0.02011657,107930.0,107920.0,0.18532246]
[1760648306741,0.0002,107930.0,107920.0,0.18532246]
[1760648306945,0.18550529,107930.0,107920.0,0.18532246]
[1760648307191,0.18550529,107930.0,107910.0,0.18592222]
[1760648307408,0.18550529,107930.0,107920.0,0.01853224]
[1760648308471,0.18550529,107930.0,107920.0,0.2038547]
[1760648308658,0.18550529,107930.0,107920.0,0.18532246]
[1760648308870,0.18550529,107930.0,107910.0,0.22759502]
[1760648309073,0.18550529,107930.0,107920.0,0.01853224]
[1760648309279,0.18550529,107930.0,107920.0,0.2038547]
[1760648309482,0.18550529,107930.0,107920.0,0.18532246]
[1760648309704,0.18550529,107930.0,107910.0,0.22759502]
[1760648309908,0.18550529,107930.0,107920.0,0.01853224]
[1760648310109,0.18550529,107930.0,107920.0,0.2038547]
[1760648310322,0.18550529,107930.0,107920.0,0.18532246]
[1760648310527,0.58135248,107940.0,107920.0,0.18532246]
[1760648310696,0.18530529,107930.0,107920.0,0.18532246]
[1760648311111,0.18532246,107920.0,107910.0,0.22758697]
[1760648311472,0.18532246,107920.0,107910.0,0.26376925]
[1760648311674,0.18530529,107930.0,107910.0,0.26376925]
[1760648312079,0.18530529,107930.0,107920.0,4e-05]
[1760648313379,0.18530529,107930.0,107920.0,0.2038947]
[1760648313624,0.39606902,107940.0,107920.0,0.21285607]
[1760648313835,0.21216471,107940.0,107930.0,0.22148757]
[1760648315117,0.02687659,107940.0,107930.0,0.22152757]
[1760648315525,0.53473891,107950.0,107930.0,0.22152757]
[1760648315737,0.53473891,107950.0,107940.0,0.18528812]
[1760648315951,0.18528812,107940.0,107930.0,0.22152757]
[1760648316178,0.18528812,107940.0,107930.0,0.26320037]
[1760648316401,0.03796269,107940.0,107930.0,0.26320037]
[1760648316825,0.0002,107950.0,107940.0,0.2214704]
[1760648317838,0.18547095,107950.0,107940.0,0.2214704]
[1760648318251,0.22318481,107950.0,107940.0,0.2214704]
[1760648318472,0.22318481,107950.0,107940.0,0.24896401]
[1760648319150,0.22318481,107950.0,107940.0,0.03618228]
[1760648319587,0.22318481,107950.0,107940.0,0.2215104]
[1760648319801,0.22318481,107950.0,107940.0,4e-05]
[1760648321085,0.22318481,107950.0,107940.0,0.20166808]
[1760648321324,0.22318481,107950.0,107940.0,4e-05]
[1760648322750,0.03791386,107950.0,107940.0,0.19901158]
[1760648323116,0.03791386,107950.0,107940.0,0.2273854]
[1760648323526,0.22318481,107950.0,107940.0,0.26356768]
[1760648323970,0.22318481,107950.0,107940.0,0.07827956]
[1760648324194,0.22318481,107950.0,107940.0,4e-05]
[1760648325296,0.22318481,107950.0,107940.0,0.01527334]
[1760648325501,0.22318481,107950.0,107940.0,4e-05]
[1760648327270,0.22318481,107950.0,107940.0,0.18532812]
[1760648327463,0.22318481,107950.0,107940.0,0.23769328]
[1760648327702,0.22318481,107950.0,107940.0,0.0371107]
[1760648327923,0.03791386,107950.0,107940.0,0.24092763]
[1760648328144,0.03791386,107950.0,107940.0,0.22239882]
[1760648328344,0.03791386,107950.0,107940.0,0.2585811]
[1760648328551,0.22318481,107950.0,107940.0,0.2585811]
[1760648329804,0.03791386,107950.0,107940.0,0.2585811]
[1760648329973,0.22318481,107950.0,107940.0,0.2585811]
[1760648330371,0.03791386,107950.0,107940.0,0.2585811]
[1760648330597,0.0002,107950.0,107940.0,0.34827122]
[1760648332620,0.22383182,107970.0,107960.0,0.22143607]
[1760648332881,0.18523983,107970.0,107960.0,0.22143607]
[1760648333025,0.18523983,107970.0,107960.0,0.25353178]
[1760648333226,0.0384186,107970.0,107960.0,0.25353178]
[1760648333542,0.53477969,107980.0,107970.0,0.18523663]
[1760648333876,0.53477969,107980.0,107970.0,0.18573922]
[1760648334283,0.3402,107980.0,107970.0,0.18573922]
[1760648334488,0.3402,107980.0,107970.0,0.2589922]
[1760648334489,0.0002,107980.0,107970.0,0.2589922]
[1760648335654,0.0384861,107980.0,107970.0,0.2589922]
[1760648335989,0.0384861,107980.0,107970.0,0.34868232]
[1760648337435,0.0002,107980.0,107970.0,0.34868232]
[1760648337634,0.0002,107980.0,107970.0,0.34872232]
[1760648340246,0.0002,107980.0,107970.0,0.85237838]
[1760648342111,1e-08,107980.0,107970.0,0.85237838]
[1760648342285,1e-08,107980.0,107970.0,1.19237838]
[1760648342485,1e-08,107980.0,107970.0,1.19214838]
[1760648343856,1e-08,107980.0,107970.0,1.22353735]
[1760648345010,1e-08,107980.0,107970.0,6.22353735]
[1760648345184,1e-08,107980.0,107970.0,6.19214838]
[1760648345830,1e-08,107980.0,107970.0,1.19214838]
[1760648347220,1e-08,107980.0,107970.0,1.28570838]
[1760648353885,1e-08,107980.0,107970.0,6.28570838]
[1760648354997,1e-08,107980.0,107970.0,6.31709735]
[1760648355263,1e-08,107980.0,107970.0,6.33564735]
[1760648355383,0.0165566,108020.0,108010.0,0.22135031]
[1760648355596,0.0165566,108020.0,108010.0,0.34313614]
[1760648355804,0.10762157,108040.0,108030.0,0.03618228]
[1760648356007,0.18514856,108030.0,108010.0,0.30695087]
[1760648356252,0.18515089,108020.0,108010.0,0.34313614]
[1760648356605,0.18515089,108020.0,108010.0,0.34363873]
[1760648358371,0.18515089,108020.0,108010.0,0.06878058]
[1760648358549,0.18515089,108020.0,108010.0,0.06882058]
[1760648358728,0.18515089,108020.0,108010.0,0.03672487]
[1760648358935,0.18515089,108020.0,108010.0,0.00054259]
[1760648359368,0.20504404,108020.0,108010.0,0.00054259]
[1760648359567,0.18515089,108020.0,108010.0,0.00054259]
[1760648359976,0.18515089,108020.0,108010.0,0.18571062]
[1760648360174,0.20504404,108020.0,108010.0,0.22279991]
[1760648360354,0.01989315,108020.0,108010.0,0.22279991]
[1760648360830,0.20504404,108020.0,108010.0,0.22279991]
[1760648364365,0.20504404,108020.0,108010.0,0.18571062]
[1760648364575,0.20504404,108020.0,108010.0,0.00054259]
[1760648365223,0.22994331,108020.0,108010.0,0.00054259]
[1760648365882,0.56994331,108020.0,108010.0,0.00054259]
[1760648366098,0.59480848,108020.0,108010.0,0.00054259]
[1760648366300,5.52070743,108020.0,108010.0,0.00054259]
[1760648366500,0.18520233,107990.0,107980.0,0.19448012]
[1760648366702,0.20559791,107990.0,107980.0,0.19448012]
[1760648367121,0.02039558,107990.0,107980.0,0.19448012]
[1760648367479,0.20559791,107990.0,107980.0,0.19448012]
[1760648367681,0.02039558,107990.0,107980.0,0.23519865]
[1760648368262,0.20559791,107990.0,107980.0,0.27138093]
[1760648368985,0.20559791,107990.0,107980.0,0.2306624]
[1760648369404,0.20559791,107990.0,107980.0,0.22140176]
[1760648370338,0.02039558,107990.0,107980.0,0.22140176]
[1760648370556,0.00050243,107990.0,107980.0,0.22140176]
[1760648371229,0.00050243,107990.0,107980.0,0.31109188]
[1760648371450,0.00050243,107990.0,107980.0,0.36163191]
[1760648372993,0.00050243,107990.0,107980.0,1.13893577]
[1760648376415,0.00050243,107990.0,107980.0,1.47893577]
[1760648380830,1e-08,107990.0,107980.0,1.47893577]
[1760648381341,1e-08,107990.0,107980.0,1.5282]
[1760648382326,1e-08,107990.0,107980.0,1.47893577]
[1760648384267,1e-08,107990.0,107980.0,1.51230811]
[1760648384480,1e-08,107990.0,107980.0,1.54014562]
[1760648385230,1e-08,107990.0,107980.0,1.50677328]
[1760648388786,1e-08,107990.0,107980.0,1.54133409]
[1760648390260,1e-08,107990.0,107980.0,1.63485409]
[1760648390736,1e-08,107990.0,107980.0,1.65340409]
[1760648394017,0.04106997,108030.0,108020.0,0.18515089]
[1760648394018,0.01839673,108030.0,108020.0,0.18515089]
[1760648394255,0.01839673,108030.0,108020.0,1.10710469]
[1760648394499,0.55275128,108050.0,108030.0,0.18513375]
[1760648394734,0.55275128,108050.0,108040.0,0.20362828]
[1760648394982,0.55275128,108050.0,108030.0,0.27482387]
[1760648394983,0.18511662,108040.0,108030.0,0.27482387]
[1760648395226,0.53435455,108050.0,108030.0,0.27482387]
[1760648395470,0.02216829,108040.0,108030.0,0.3253639]
[1760648395710,0.53435455,108050.0,108030.0,0.3253639]
[1760648395943,0.53435455,108050.0,108040.0,0.18511662]
[1760648396165,0.53435455,108050.0,108030.0,0.3253639]
[1760648396429,0.55719618,108050.0,108040.0,0.23981056]
[1760648396662,0.55719609,108050.0,108040.0,0.23992528]
[1760648397312,0.36284163,108050.0,108040.0,0.23992528]
[1760648397566,0.02284163,108050.0,108040.0,0.23992528]
[1760648397789,0.02284163,108050.0,108040.0,0.3296154]
[1760648398014,0.3402,108060.0,108050.0,0.22128177]
[1760648398015,0.0002,108060.0,108050.0,0.22128177]
[1760648398246,0.0002,108060.0,108050.0,0.2718218]
[1760648398481,0.0232639,108060.0,108050.0,0.36151192]
[1760648399002,0.18528236,108060.0,108050.0,0.36151192]
[1760648399459,0.18528236,108060.0,108050.0,0.31097189]
[1760648400411,0.18528236,108060.0,108040.0,0.18511662]
[1760648400628,0.18528236,108060.0,108050.0,0.20360943]
[1760648400848,0.18528236,108060.0,108040.0,0.27480674]
[1760648401304,0.18509949,108050.0,108040.0,0.12128902]
[1760648401758,0.18509949,108050.0,108040.0,0.33797359]
[1760648402399,0.19453647,108060.0,108040.0,0.33797359]
[1760648402618,0.53453647,108060.0,108050.0,0.20360943]
[1760648402843,0.53453647,108060.0,108050.0,0.18509949]
[1760648402844,0.52528236,108060.0,108050.0,0.18509949]
[1760648403068,0.3402,108060.0,108050.0,0.31097189]
[1760648403285,0.3402,108060.0,108050.0,0.34857035]
[1760648403716,0.0002,108060.0,108050.0,0.34857035]
[1760648403930,0.0002,108060.0,108050.0,1.12587421]
[1760648404359,0.0002,108060.0,108050.0,1.21939421]
[1760648405507,0.0002,108060.0,108050.0,0.44209035]
[1760648406341,0.0002,108060.0,108050.0,1.21939421]
[1760648407015,1e-08,108060.0,108050.0,1.55939421]
[1760648408309,1e-08,108060.0,108050.0,1.59176617]
[1760648409794,0.0002,108080.0,108070.0,0.99855137]
[1760648409999,0.0002,108080.0,108070.0,1.21332944]
[1760648410203,0.0002,108080.0,108070.0,1.2457014]
[1760648410841,0.0252,108090.0,108080.0,0.99853425]
[1760648411057,0.0252,108090.0,108080.0,1.08822437]
[1760648411468,0.0252,108090.0,108080.0,1.12059633]
[1760648411684,0.0252,108090.0,108080.0,1.15819479]
[1760648411913,0.01518881,108090.0,108080.0,1.15819479]
[1760648412338,0.00548758,108090.0,108080.0,1.15819479]
[1760648412555,0.0025,108100.0,108090.0,0.22121327]
[1760648412775,0.0025,108100.0,108090.0,1.18168725]
[1760648412993,0.0025,108100.0,108090.0,1.2132552]
[1760648413267,0.0025,108100.0,108090.0,1.24348013]
[1760648413477,0.0025,108100.0,108090.0,1.2132552]
[1760648413698,0.0025,108100.0,108090.0,1.24348013]
[1760648413915,0.0025,108100.0,108090.0,1.2132552]
[1760648414138,0.0025,108100.0,108090.0,1.1197752]
[1760648414371,0.0025,108100.0,108090.0,0.43595134]
[1760648414643,0.0025,108100.0,108090.0,0.34247134]
[1760648414843,0.18751387,108100.0,108090.0,0.08969012]
[1760648415249,0.18751387,108100.0,108090.0,0.27472111]
[1760648415250,0.0025,108100.0,108090.0,0.27472111]
[1760648415864,0.0025,108100.0,108090.0,0.31090339]
[1760648416956,0.18751387,108100.0,108090.0,0.31090339]
[1760648417186,0.18751387,108100.0,108090.0,0.1258724]
[1760648417398,0.18751387,108100.0,108090.0,0.31090339]
[1760648417610,0.18751387,108100.0,108090.0,0.1258724]
[1760648417828,0.18751387,108100.0,108090.0,0.1259124]
[1760648418257,0.18751387,108100.0,108090.0,0.18507099]
[1760648418484,0.18751387,108100.0,108090.0,0.03622228]
[1760648419562,0.18751387,108100.0,108090.0,4e-05]
[1760648419786,0.18751387,108100.0,108090.0,0.03622228]
[1760648421771,0.18751387,108100.0,108090.0,0.22125327]
[1760648422206,0.18751387,108100.0,108090.0,0.2618831]
[1760648423051,0.18751387,108100.0,108090.0,0.22570082]
[1760648423205,0.18751387,108100.0,108090.0,0.2618831]
[1760648423776,0.0025,108100.0,108090.0,0.2618831]
[1760648424630,0.18751387,108100.0,108090.0,0.2618831]
[1760648425241,0.0025,108100.0,108090.0,0.2618831]
[1760648425688,0.0025,108100.0,108090.0,0.85312187]
[1760648426792,0.0025,108100.0,108090.0,0.35157322]
[1760648427007,0.0025,108100.0,108090.0,0.94660187]
[1760648427677,0.0025,108100.0,108090.0,0.98490847]
[1760648428832,0.0025,108100.0,108090.0,0.48335982]
[1760648429042,0.0025,108100.0,108090.0,0.98490847]
[1760648430531,0.0025,108100.0,108090.0,0.94660187]
[1760648430757,0.0025,108100.0,108090.0,0.44505322]
[1760648430985,0.0025,108100.0,108090.0,0.44501322]
[1760648431241,0.53181618,108120.0,108110.0,0.03618228]
[1760648431460,0.53181618,108120.0,108110.0,0.0583018]
[1760648431899,0.56913995,108120.0,108110.0,0.0583018]
[1760648432334,0.56913995,108120.0,108110.0,0.03618228]
[1760648432577,0.569643,108120.0,108110.0,0.03618228]
[1760648433959,0.569643,108120.0,108110.0,0.03622228]
[1760648435269,0.569643,108120.0,108110.0,4e-05]
[1760648436793,0.569643,108120.0,108110.0,0.18503676]
[1760648437002,0.569643,108120.0,108110.0,4e-05]
[1760648441157,0.59452653,108120.0,108110.0,4e-05]
[1760648445267,0.569643,108120.0,108110.0,4e-05]
[1760648445956,0.56038936,108120.0,108110.0,4e-05]
[1760648446173,0.56038936,108120.0,108110.0,0.01853967]
[1760648446395,0.56038936,108120.0,108110.0,0.03889499]
[1760648446861,0.56038936,108120.0,108110.0,0.22389175]
[1760648447071,0.37540971,108120.0,108110.0,0.20539208]
[1760648447302,0.56038936,108120.0,108110.0,0.20539208]
[1760648447508,0.37540971,108120.0,108110.0,0.20539208]
[1760648447727,0.37540971,108120.0,108110.0,0.33126448]
[1760648449456,0.00050305,108120.0,108110.0,0.77254222]
[1760648453221,0.00050305,108120.0,108110.0,1.21381996]
[1760648454909,0.00050305,108120.0,108110.0,0.77254222]
[1760648455333,0.00050305,108120.0,108110.0,1.21381996]
[1760648458373,0.00050305,108120.0,108110.0,0.77254222]
[1760648459754,0.00050305,108120.0,108110.0,0.33126448]
[1760648459978,0.00050305,108120.0,108110.0,0.77254222]
[1760648460791,0.00534264,108120.0,108110.0,0.77254222]
[1760648461671,0.00534264,108120.0,108110.0,0.33126448]
[1760648461875,0.00534264,108120.0,108110.0,0.77254222]
[1760648464375,0.00050305,108120.0,108110.0,0.77254222]
[1760648466758,0.00050305,108120.0,108110.0,1.21381996]
[1760648468244,0.00050305,108120.0,108110.0,1.30721996]
[1760648469074,0.00050305,108120.0,108110.0,1.21381996]
[1760648469290,0.00050305,108120.0,108110.0,1.30721996]
[1760648469498,1e-08,108120.0,108110.0,6.33742526]
[1760648470351,1e-08,108120.0,108110.0,6.67742526]
[1760648472085,1e-08,108120.0,108110.0,7.118703]
[1760648472302,1e-08,108120.0,108110.0,7.14912649]
[1760648472731,1e-08,108120.0,108110.0,7.15283336]
[1760648473183,0.09238134,108180.0,108160.0,0.18490313]
[1760648473405,0.43238134,108180.0,108170.0,0.23956583]
[1760648473611,0.43238134,108180.0,108170.0,0.22107642]
[1760648473612,0.41398461,108180.0,108170.0,0.22107642]
[1760648473826,0.41398461,108180.0,108170.0,0.03618228]
[1760648474241,0.41398461,108180.0,108170.0,0.05467169]
[1760648475104,0.42322846,108180.0,108170.0,0.05467169]
[1760648475308,0.42322846,108180.0,108170.0,0.26813306]
[1760648475525,0.42322846,108180.0,108170.0,0.24964365]
[1760648475735,0.42322846,108180.0,108170.0,0.06474951]
[1760648475952,0.42322846,108180.0,108170.0,0.08323892]
[1760648476152,0.42322846,108180.0,108170.0,0.26813306]
[1760648476353,0.42322846,108180.0,108170.0,0.24964365]
[1760648476772,0.22335044,108190.0,108180.0,0.22105933]
[1760648476773,0.03837511,108190.0,108180.0,0.22105933]
[1760648476979,0.03837511,108190.0,108180.0,0.35134863]
[1760648477202,0.34,108190.0,108180.0,0.35134863]
[1760648477622,0.0002,108200.0,108190.0,0.18485996]
[1760648477852,0.52504288,108200.0,108180.0,0.35134863]
[1760648478070,0.3402,108200.0,108190.0,0.23952823]
[1760648478323,0.3402,108200.0,108190.0,0.22104224]
[1760648478550,0.37757261,108200.0,108190.0,0.33929959]
[1760648478755,0.0002,108200.0,108190.0,0.33929959]
[1760648479169,0.3402,108200.0,108190.0,0.33929959]
[1760648479381,0.52504288,108200.0,108190.0,0.15443963]
[1760648479831,0.52504288,108200.0,108190.0,0.33929959]
[1760648480052,0.52504288,108200.0,108190.0,0.15443963]
[1760648480293,0.56266372,108200.0,108190.0,0.15443963]
[1760648480503,0.56266372,108200.0,108190.0,0.1258724]
[1760648480934,0.56266372,108200.0,108190.0,0.08969012]
[1760648481145,0.56266372,108200.0,108190.0,0.1258724]
[1760648481781,0.56266372,108200.0,108160.0,0.67185414]
[1760648481782,0.00924299,108190.0,108160.0,0.00015116]
[1760648482014,0.18489414,108170.0,108160.0,0.00015116]
[1760648482278,0.18489414,108170.0,108160.0,0.08984128]
[1760648482547,0.18489414,108170.0,108160.0,0.27475252]
[1760648482785,0.18489414,108170.0,108160.0,0.12849346]
[1760648483255,0.52489414,108170.0,108160.0,0.00015116]
[1760648483733,0.52489414,108170.0,108160.0,0.01864228]
[1760648483944,0.52489414,108170.0,108160.0,0.00015116]
[1760648485562,0.52489414,108170.0,108160.0,0.01868228]
[1760648485769,0.52489414,108170.0,108160.0,0.00019116]
[1760648485985,0.52489414,108170.0,108160.0,0.01868228]
[1760648486203,0.52489414,108170.0,108160.0,0.02417032]
[1760648486404,0.55269855,108170.0,108160.0,0.00019116]
[1760648486818,0.55269855,108170.0,108160.0,0.01868228]
[1760648487251,0.55269855,108170.0,108160.0,0.00019116]
[1760648488096,0.55269855,108170.0,108160.0,0.01868228]
[1760648488320,0.55269855,108170.0,108160.0,0.00019116]
[1760648490577,0.55269855,108170.0,108160.0,0.20359352]
[1760648490821,0.55269855,108170.0,108160.0,0.07884385]
[1760648491080,0.52489414,108170.0,108160.0,0.37193633]
[1760648491291,0.21269252,108180.0,108170.0,0.18489414]
[1760648491491,0.55269252,108180.0,108160.0,0.35344521]
[1760648491707,0.55269252,108180.0,108170.0,0.01848941]
[1760648491930,0.18489414,108170.0,108160.0,0.16853397]
[1760648492157,0.18489414,108170.0,108160.0,0.12606356]
[1760648493031,0.52489414,108170.0,108160.0,0.00019116]
[1760648493512,0.54481248,108170.0,108160.0,0.00019116]
[1760648494146,0.56969601,108170.0,108160.0,0.00019116]
[1760648498984,0.81369601,108170.0,108160.0,0.00019116]
[1760648499204,5.47834609,108170.0,108160.0,0.00019116]
[1760648499407,5.51163936,108170.0,108160.0,0.00019116]
[1760648500287,5.42195728,108170.0,108160.0,0.00019116]
[1760648500495,5.38866401,108170.0,108160.0,0.00019116]
[1760648501556,0.56969601,108170.0,108160.0,0.00019116]
[1760648501772,0.54481248,108170.0,108160.0,0.00019116]
[1760648502454,0.52489414,108170.0,108160.0,0.00019116]
[1760648504058,0.59234221,108170.0,108160.0,0.00019116]
[1760648504491,0.52489414,108170.0,108160.0,0.00019116]
[1760648509833,0.5527013,108170.0,108160.0,0.00019116]
[1760648510278,0.57263207,108170.0,108160.0,0.00019116]
[1760648510510,0.5527013,108170.0,108160.0,0.00019116]
[1760648513309,0.51346429,108170.0,108160.0,0.00019116]
[1760648517731,0.58329983,108170.0,108160.0,0.00019116]
[1760648518552,0.60325878,108170.0,108160.0,0.00019116]
[1760648521328,0.53342324,108170.0,108160.0,0.00019116]
[1760648531057,0.55830677,108170.0,108160.0,0.00019116]
[1760648531467,0.55830677,108170.0,108160.0,1e-08]
[1760648531674,5.43562442,108170.0,108160.0,1e-08]
[1760648532131,5.40233115,108170.0,108160.0,1e-08]
[1760648532368,5.49201323,108170.0,108160.0,1e-08]
[1760648532566,5.52531412,108170.0,108160.0,1e-08]
[1760648533496,5.47537421,108170.0,108160.0,1e-08]
[1760648533719,5.52531412,108170.0,108160.0,1e-08]
[1760648534754,5.47537421,108170.0,108160.0,1e-08]
[1760648535163,5.52531412,108170.0,108160.0,1e-08]
[1760648537322,5.76931412,108170.0,108160.0,1e-08]
[1760648537544,5.71937421,108170.0,108160.0,1e-08]
[1760648537968,5.76931412,108170.0,108160.0,1e-08]
[1760648538194,5.71605428,108170.0,108160.0,1e-08]
[1760648538474,5.71933427,108170.0,108160.0,1e-08]
[1760648539360,5.74428,108170.0,108160.0,1e-08]
[1760648539589,5.71933427,108170.0,108160.0,1e-08]
[1760648540049,5.74427861,108170.0,108160.0,1e-08]
[1760648541243,5.71933427,108170.0,108160.0,1e-08]
[1760648541414,5.41024928,108170.0,108160.0,1e-08]
[1760648541962,5.44351172,108170.0,108160.0,1e-08]
[1760648542621,5.479694,108170.0,108160.0,1e-08]
[1760648542826,5.47198392,108170.0,108160.0,1e-08]
[1760648543065,5.47198583,108170.0,108160.0,1e-08]
[1760648543273,5.45475356,108170.0,108160.0,1e-08]
[1760648543416,5.81198291,108170.0,108160.0,1e-08]
[1760648544096,5.81968773,108170.0,108160.0,1e-08]
[1760648544337,5.79475356,108170.0,108160.0,1e-08]
[1760648544512,5.81198231,108170.0,108160.0,1e-08]
[1760648545751,5.34391344,108140.0,108130.0,0.01839673]
[1760648545969,5.45355298,108140.0,108130.0,0.01854752]
[1760648546137,0.52497965,108120.0,108110.0,0.01843673]
[1760648546318,0.52497965,108120.0,108110.0,0.01858763]
[1760648546520,0.52497965,108120.0,108110.0,0.0001909]
[1760648546826,0.18501387,108100.0,108090.0,0.01843673]
[1760648547030,0.52501387,108100.0,108090.0,0.01893978]
[1760648547509,0.52501387,108100.0,108090.0,0.00054305]
[1760648547739,0.5528364,108100.0,108090.0,0.00054305]
[1760648547950,0.58960008,108100.0,108090.0,0.00054305]
[1760648549216,0.58960008,108100.0,108050.0,0.18541762]
[1760648549217,0.18508236,108060.0,108050.0,0.01879673]
[1760648549431,0.18506523,108070.0,108050.0,0.29373709]
[1760648549937,0.18508236,108060.0,108050.0,0.27534036]
[1760648550396,0.18508236,108060.0,108050.0,0.31152264]
[1760648551421,0.21289453,108070.0,108060.0,0.18508236]
[1760648551637,0.21289453,108070.0,108060.0,0.23474286]
[1760648552003,0.25119171,108070.0,108060.0,0.23474286]
[1760648552411,0.25119171,108070.0,108060.0,0.0496605]
[1760648552616,0.25119171,108070.0,108060.0,0.23474286]
[1760648553610,0.06612648,108070.0,108060.0,0.23474286]
[1760648553865,0.25119171,108070.0,108060.0,0.23474286]
[1760648554371,0.0278293,108070.0,108060.0,0.27092514]
[1760648554506,0.56313072,108080.0,108070.0,0.18506523]
[1760648554701,0.56313072,108080.0,108060.0,0.27092514]
[1760648554960,0.56313072,108080.0,108060.0,0.27096514]
[1760648555341,0.59095867,108080.0,108060.0,0.27096514]
[1760648555545,0.53248845,108070.0,108060.0,4e-05]
[1760648555750,0.52506523,108070.0,108060.0,4e-05]
[1760648556374,0.54492414,108070.0,108060.0,4e-05]
[1760648559418,0.56985396,108070.0,108060.0,4e-05]
[1760648559732,0.6708754,108070.0,108060.0,4e-05]
[1760648559932,0.64594558,108070.0,108060.0,4e-05]
[1760648560423,0.6708754,108070.0,108060.0,4e-05]
[1760648560628,0.56332087,108070.0,108060.0,4e-05]
[1760648565459,0.20346196,108070.0,108060.0,4e-05]
[1760648565884,0.54346196,108070.0,108060.0,4e-05]
[1760648569401,0.54346196,108070.0,108060.0,0.23981287]
[1760648569608,0.52506523,108070.0,108060.0,0.26385423]
[1760648570150,0.18506523,108070.0,108060.0,0.26385423]
[1760648570365,0.51482261,108080.0,108060.0,0.35354435]
[1760648570563,0.18506523,108070.0,108060.0,0.35354435]
[1760648572352,0.51483889,108080.0,108070.0,0.18506523]
[1760648572560,0.51483889,108080.0,108070.0,0.21168205]
[1760648572561,0.46713072,108080.0,108070.0,0.21168205]
[1760648572776,0.244,108080.0,108070.0,0.33755445]
[1760648572974,0.42904811,108080.0,108070.0,0.33755445]
[1760648573184,0.244,108080.0,108070.0,0.33755445]
[1760648573529,0.61904339,108090.0,108080.0,0.18504811]
[1760648573731,0.60976177,108090.0,108080.0,0.26377998]
[1760648573932,0.58193684,108090.0,108080.0,0.26377998]
[1760648574201,0.24193684,108090.0,108080.0,0.26377998]
[1760648574855,0.21283713,108100.0,108080.0,0.3534701]
[1760648575055,0.23274729,108100.0,108090.0,0.23971636]
[1760648575203,0.57274729,108100.0,108090.0,0.0627991]
[1760648575391,0.57274729,108100.0,108090.0,0.08130219]
[1760648576266,0.57274729,108100.0,108090.0,0.3560233]
[1760648576267,0.03832328,108100.0,108090.0,0.3560233]
[1760648576415,0.03832328,108100.0,108090.0,0.33752021]
[1760648576827,0.00050302,108100.0,108090.0,0.33752021]
[1760648582059,0.00050302,108100.0,108090.0,0.83968149]
[1760648582268,0.00050302,108100.0,108090.0,0.33752021]
[1760648585253,0.00050302,108100.0,108090.0,0.43088021]
[1760648585633,0.00050302,108100.0,108090.0,0.33752021]
[1760648585891,0.00050302,108100.0,108090.0,0.43088021]
[1760648586108,0.00050302,108100.0,108090.0,0.33752021]
[1760648587567,0.22204528,108120.0,108090.0,0.33752021]
[1760648587568,0.53102303,108120.0,108110.0,0.03618228]
[1760648587765,0.53102303,108120.0,108110.0,0.05845265]
[1760648589107,0.54027201,108120.0,108110.0,0.05845265]
[1760648590816,0.54027201,108120.0,108110.0,0.07695232]
[1760648591475,0.54027201,108120.0,108110.0,0.26194908]
[1760648591674,0.54027201,108120.0,108110.0,0.05845265]
[1760648591889,0.54027201,108120.0,108110.0,0.07695232]
[1760648593581,0.54027201,108120.0,108110.0,0.26194908]
[1760648593860,0.54027201,108120.0,108110.0,0.24344941]
[1760648594076,0.54027201,108120.0,108110.0,0.05845265]
[1760648595363,0.54027201,108120.0,108110.0,0.06395334]
[1760648595995,0.55822237,108120.0,108110.0,0.06395334]
[1760648596228,0.53425636,108120.0,108110.0,0.06395334]
[1760648596430,0.56207208,108120.0,108110.0,0.06395334]
[1760648596643,0.53425636,108120.0,108110.0,0.06395334]
[1760648597065,0.56207208,108120.0,108110.0,0.06395334]
[1760648597486,0.56207208,108120.0,108110.0,0.00565144]
[1760648600726,0.58200742,108120.0,108110.0,0.00565144]
[1760648600966,0.56207208,108120.0,108110.0,0.00565144]
[1760648601153,0.58200753,108120.0,108110.0,0.00565144]
[1760648602962,0.60693735,108120.0,108110.0,0.00565144]
[1760648603201,0.69319246,108120.0,108110.0,0.00565144]
[1760648603867,0.52503099,108090.0,108080.0,0.01839673]
[1760648604083,0.52503099,108090.0,108080.0,0.01889975]
[1760648604526,0.55285492,108090.0,108080.0,0.00050302]
[1760648606155,0.52503099,108090.0,108080.0,0.00050302]
[1760648609883,0.54497,108090.0,108080.0,0.00050302]